fUSD/lending_fUSD_20260413
["ID","MTS","AMOUNT","RATE_DAILY","PERIOD"]
[420359190,1776031849371,-500.0,0.00016573,2]
[420359192,1776031849395,-500.0,0.00016573,2]
[420359194,1776031849405,-500.0,0.00016573,2]
[420359196,1776031849427,-500.0,0.00016573,2]
[420359198,1776031849438,-308.60154884,0.00016573,2]
[420359200,1776031849447,-165.17242303,0.00016573,2]
[420359202,1776031849470,-500.0,0.00016573,2]
[420359204,1776031849503,-162.6932391,0.00016573,2]
[420359206,1776031849513,-500.0,0.00016573,2]
[420359208,1776031849545,-500.0,0.00016573,2]
[420359210,1776031849554,-500.0,0.00016573,2]
[420359212,1776031849577,-500.32940014,0.00016573,2]
[420359214,1776031849588,-500.0,0.00016573,2]
[420359215,1776031849597,-500.0,0.00016573,2]
[420359217,1776031849612,-499.8818698,0.00016573,2]
[420359219,1776031849651,-164.51173223,0.00016573,2]
[420359221,1776031849673,-528.10477584,0.00016573,2]
[420359224,1776031849683,-500.0,0.00016573,2]
[420359225,1776031849692,-166.95169922,0.00016573,2]
[420359227,1776031849702,-500.0,0.00016573,2]
[420359229,1776031849721,-500.0,0.00016573,2]
[420359231,1776031849730,-501.49895413,0.00016573,2]
[420359233,1776031849740,-500.0,0.00016573,2]
[420359235,1776031849759,-193.05633135,0.00016573,2]
[420359237,1776031849768,-500.0,0.00016573,2]
[420359239,1776031849778,-501.00588837,0.00016573,2]
[420359241,1776031849787,-500.0,0.00016573,2]
[420359243,1776031849809,-163.21203656,0.00016573,2]
[420359245,1776031849818,-500.20892308,0.00016573,2]
[420359247,1776031849827,-288.40469029,0.00016573,2]
[420359249,1776031849838,-500.0,0.00016573,2]
[420359251,1776031849853,-500.0,0.00016573,2]
[420359253,1776031849862,-500.0,0.00016573,2]
[420359255,1776031849888,-500.0,0.00016573,2]
[420359257,1776031849897,-152.0,0.00016576,7]
[420359260,1776031849918,-246.0,0.00016588,2]
[420359262,1776031849951,-1100.0,0.000166,6]
[420359263,1776031849975,-578.20924308,0.00016642,2]
[420359265,1776031849991,-200.0,0.00016642,2]
[420359267,1776031850006,-1328.27659266,0.00016642,2]
[420359269,1776031850056,-500.0,0.00016642,2]
[420359271,1776031850108,-201.77063236,0.00016642,2]
[420359274,1776031850183,-151.0,0.00016642,2]
[420359276,1776031850204,-743.50770149,0.00016642,2]
[420359278,1776031850243,-174.61919141,0.00016642,2]
[420359279,1776031850255,-170.0,0.00016642,2]
[420359281,1776031850323,-170.0,0.00016642,2]
[420359283,1776031850333,-170.0,0.00016642,2]
[420359285,1776031850349,-170.0,0.00016642,2]
[420359287,1776031850368,-170.0,0.00016642,2]
[420359289,1776031850377,-170.0,0.00016642,2]
[420359291,1776031850396,-170.0,0.00016642,2]
[420359293,1776031850406,-170.0,0.00016642,2]
[420359295,1776031850415,-170.0,0.00016642,2]
[420359297,1776031850424,-170.0,0.00016642,2]
[420359299,1776031850437,-170.0,0.00016642,2]
[420359329,1776031850780,-170.0,0.00016642,2]
[420359331,1776031850800,-170.0,0.00016642,2]
[420359333,1776031850811,-246.0,0.00016645,2]
[420359335,1776031850823,-246.0,0.00016649,2]
[420359337,1776031850833,-151.0,0.00016669,2]
[420359339,1776031850842,-500.0,0.00016672,2]
[420359341,1776031850861,-382.610936,0.00016672,2]
[420359343,1776031850873,-382.610936,0.00016672,2]
[420359344,1776031850889,-382.610936,0.00016672,2]
[420359346,1776031850899,-382.610936,0.00016672,2]
[420359348,1776031850915,-151.0,0.00016672,2]
[420359350,1776031850927,-151.0,0.00016672,2]
[420359352,1776031850936,-212.450299,0.00016672,2]
[420359354,1776031850960,-500.0,0.00016672,2]
[420359356,1776031850971,-500.0,0.00016672,2]
[420359358,1776031850988,-500.0,0.00016672,2]
[420359360,1776031850997,-500.0,0.00016672,2]
[420359362,1776031851021,-171.886025,0.00016672,2]
[420359364,1776031851030,-171.886025,0.00016672,2]
[420359366,1776031851040,-171.886025,0.00016672,2]
[420359368,1776031851061,-171.886025,0.00016672,2]
[420359370,1776031851071,-500.0,0.00016672,2]
[420359372,1776031851081,-500.0,0.00016672,2]
[420359374,1776031851095,-500.0,0.00016672,2]
[420359376,1776031851120,-500.0,0.00016672,2]
[420359378,1776031851130,-6431.2659,0.00016672,2]
[420359380,1776031851149,-4914.2232,0.00016672,2]
[420359382,1776031851165,-500.57038075,0.00016673,2]
[420359384,1776031851175,-500.0,0.00016673,2]
[420359386,1776031851201,-500.0,0.00016673,2]
[420359388,1776031851211,-501.83833659,0.00016673,2]
[420359390,1776031851220,-500.0,0.00016673,2]
[420359392,1776031851239,-500.0,0.00016673,2]
[420359394,1776031851257,-227.48394539,0.00016673,2]
[420359396,1776031851268,-500.0,0.00016673,2]
[420359398,1776031851292,-500.0,0.00016697,2]
[420359400,1776031851312,-151.0,0.00016697,2]
[420359402,1776031851325,-2300.0,0.000167,6]
[420359404,1776031851337,-246.0,0.00016734,2]
[420359407,1776031851352,-500.0,0.00016752,2]
[420359409,1776031851381,-151.0,0.00016752,2]
[420359411,1776031851392,-1976.39652943,0.00016762,2]
[420359412,1776031851411,-4198.24685605,0.00016762,2]
[420359414,1776031851421,-397.25763086,0.00016762,2]
[420359417,1776031851433,-151.0,0.00016769,2]
[420359419,1776031851453,-37192.9739545,0.00016772,2]
[420359421,1776031851473,-7000.5825603,0.00016772,2]
[420359423,1776031851485,-500.0,0.00016772,2]
[420359425,1776031851502,-500.0,0.00016772,2]
[420359426,1776031851517,-500.0,0.00016772,2]
[420359428,1776031851530,-500.0,0.00016772,2]
[420359430,1776031851544,-500.0,0.00016772,2]
[420359432,1776031851554,-246.96258362,0.00016772,2]
[420359434,1776031851567,-1966.462,0.00016772,2]
[420359436,1776031851595,-221.003,0.00016772,2]
[420359439,1776031851605,-185.81766989,0.00016772,2]
[420359440,1776031851614,-151.0,0.00016772,2]
[420359442,1776031851631,-4911.7447,0.00016772,2]
[420359444,1776031851644,-500.0,0.00016773,2]
[420359446,1776031851654,-500.20767084,0.00016773,2]
[420359448,1776031851663,-500.0,0.00016773,2]
[420359450,1776031851687,-3500.0,0.000168,6]
[420359452,1776031851697,-500.0,0.00016807,2]
[420359454,1776031851707,-151.0,0.00016807,2]
[420359456,1776031851726,-246.0,0.00016817,2]
[420359458,1776031851751,-184.52379738,0.00016822,2]
[420359460,1776031851760,-166.2149,0.0001684,2]
[420359462,1776031851787,-500.0,0.00016862,2]
[420359464,1776031851798,-151.0,0.00016862,2]
[420359466,1776031851822,-246.0,0.00016874,2]
[420359468,1776031851831,-320.0,0.00016898,2]
[420359470,1776031851845,-4700.0,0.000169,6]
[420359472,1776031851859,-1000.0,0.000169,2]
[420359474,1776031851868,-1000.0,0.000169,2]
[420359476,1776031851878,-500.0,0.00016917,2]
[420359478,1776031851894,-151.0,0.00016917,2]
[420359480,1776031851905,-500.0,0.00016972,2]
[420359482,1776031851916,-151.0,0.00016972,2]
[420359484,1776031851926,-500.87577669,0.00016973,2]
[420359486,1776031851947,-151.0,0.00016973,2]
[420359488,1776031851968,-151.0,0.00016973,2]
[420359490,1776031851977,-500.0,0.00016981,2]
[420359492,1776031851991,-179.83582665,0.00016983,2]
[420359494,1776031852002,-246.0,0.00016993,2]
[420359496,1776031852017,-500.0,0.00017027,2]
[420359498,1776031852030,-151.0,0.00017027,2]
[420359500,1776031852040,-246.0,0.00017034,2]
[420359502,1776031852056,-203.18725147,0.00017037,2]
[420359504,1776031852071,-240.0,0.00017068,2]
[420359506,1776031852111,-1000.0,0.00017072,2]
[420359507,1776031852129,-1000.0,0.00017072,2]
[420359509,1776031852152,-1000.0,0.00017072,2]
[420359511,1776031852163,-1000.0,0.00017072,2]
[420359513,1776031852174,-500.0,0.00017082,2]
[420359516,1776031852238,-151.0,0.00017082,2]
[420359518,1776031852259,-591.0,0.00017099,2]
[420359519,1776031852302,-1000.0,0.00017121,2]
[420359522,1776031852317,-500.0,0.00017121,2]
[420359524,1776031852343,-500.0,0.00017121,2]
[420359526,1776031852353,-500.0,0.00017121,2]
[420359528,1776031852394,-1000.0,0.00017121,2]
[420359529,1776031852404,-500.0,0.00017121,2]
[420359531,1776031852446,-1000.0,0.00017121,2]
[420359533,1776031852458,-500.0,0.00017121,2]
[420359535,1776031852467,-500.0,0.00017137,2]
[420359538,1776031852501,-151.0,0.00017137,2]
[420359540,1776031852511,-5989.93998303,0.00017149,2]
[420359542,1776031852521,-591.0,0.00017178,2]
[420359544,1776031852537,-694.99,0.00017181,2]
[420359546,1776031852561,-200.0,0.0001719,2]
[420359548,1776031852571,-1377.42282659,0.0001719,2]
[420359549,1776031852581,-771.01748645,0.0001719,2]
[420359552,1776031852611,-181.08010149,0.0001719,2]
[420359553,1776031852621,-151.0,0.00017192,2]
[420359555,1776031852631,-591.0,0.00017214,2]
[420359557,1776031852642,-390.40598794,0.00017221,2]
[420359560,1776031852659,-10828.49777268,0.00017222,2]
[420359561,1776031852678,-151.0,0.00017247,2]
[420359564,1776031852689,-1494.0,0.00017248,5]
[420359566,1776031852710,-1199.0,0.00017248,5]
[420359568,1776031852720,-2840.0,0.00017248,5]
[420359569,1776031852738,-246.0,0.00017251,2]
[420359571,1776031852750,-591.0,0.00017283,2]
[420359573,1776031852771,-382.610936,0.00017283,2]
[420359575,1776031852783,-382.610936,0.00017283,2]
[420359577,1776031852809,-382.610936,0.00017283,2]
[420359579,1776031852819,-382.610936,0.00017283,2]
[420359582,1776031852840,-192.989931,0.00017283,2]
[420359584,1776031852865,-192.989931,0.00017283,2]
[420359586,1776031852877,-192.989931,0.00017283,2]
[420359588,1776031852891,-192.989931,0.00017283,2]
[420359590,1776031852907,-591.0,0.00017296,2]
[420359592,1776031852930,-151.0,0.00017302,2]
[420359593,1776031852941,-320.0,0.0001731,2]
[420359595,1776031852959,-1000.0,0.00017321,2]
[420359597,1776031852970,-276.06018683,0.0001734,2]
[420359599,1776031852980,-500.0,0.00017351,2]
[420359601,1776031852996,-150.0,0.00017352,2]
[420359603,1776031853021,-150.0,0.00017352,2]
[420359605,1776031853031,-250.0,0.00017352,2]
[420359607,1776031853043,-150.0,0.00017352,2]
[420359609,1776031853061,-150.0,0.00017352,2]
[420359611,1776031853070,-150.0,0.00017352,2]
[420359613,1776031853079,-150.0,0.00017352,2]
[420359615,1776031853096,-166.10582343,0.00017352,2]
[420359617,1776031853105,-150.0,0.00017352,2]
[420359619,1776031853115,-181.01497798,0.00017352,2]
[420359621,1776031853133,-189.02,0.00017352,2]
[420359623,1776031853146,-150.0,0.00017352,2]
[420359624,1776031853155,-500.0,0.00017352,2]
[420359625,1776031853166,-500.0,0.00017352,2]
[420359626,1776031853182,-500.0,0.00017352,2]
[420359627,1776031853195,-364.6535985,0.00017352,2]
[420359628,1776031853205,-500.0,0.00017352,2]
[420359629,1776031853222,-150.0,0.00017352,2]
[420359630,1776031853258,-150.0,0.00017352,2]
[420359631,1776031853269,-500.0,0.00017352,2]
[420359632,1776031853290,-200.0,0.00017352,2]
[420359634,1776031853313,-300.0,0.00017352,2]
[420359636,1776031853333,-500.0,0.00017352,2]
[420359638,1776031853360,-500.0,0.00017352,2]
[420359640,1776031853371,-208.16571559,0.00017352,2]
[420359642,1776031853386,-150.0,0.00017352,2]
[420359644,1776031853419,-150.0,0.00017352,2]
[420359646,1776031853435,-150.0,0.00017352,2]
[420359648,1776031853465,-253.28980494,0.00017352,2]
[420359650,1776031853482,-150.0,0.00017352,2]
[420359652,1776031853511,-500.0,0.00017352,2]
[420359654,1776031853537,-150.0,0.00017352,2]
[420359656,1776031853558,-500.0,0.00017352,2]
[420359659,1776031853574,-150.0,0.00017352,2]
[420359661,1776031853613,-500.0,0.00017352,2]
[420359663,1776031853623,-250.0,0.00017352,2]
[420359665,1776031853652,-150.0,0.00017352,2]
[420359666,1776031853665,-500.0,0.00017352,2]
[420359669,1776031853699,-150.0,0.00017352,2]
[420359670,1776031853712,-500.0,0.00017352,2]
[420359673,1776031853729,-500.0,0.00017352,2]
[420359675,1776031853748,-165.47425874,0.00017352,2]
[420359677,1776031853758,-500.0,0.00017352,2]
[420359678,1776031853770,-500.0,0.00017352,2]
[420359680,1776031853788,-500.0,0.00017352,2]
[420359682,1776031853810,-500.0,0.00017352,2]
[420359684,1776031853821,-500.0,0.00017352,2]
[420359687,1776031853836,-500.0,0.00017352,2]
[420359688,1776031853851,-500.0,0.00017352,2]
[420359690,1776031853861,-328.23575097,0.00017352,2]
[420359692,1776031853874,-163.82057585,0.00017352,2]
[420359694,1776031853904,-254.86309859,0.00017352,2]
[420359696,1776031853916,-150.0,0.00017352,2]
[420359698,1776031853943,-500.0,0.00017352,2]
[420359700,1776031853964,-500.0,0.00017352,2]
[420359703,1776031853977,-500.0,0.00017352,2]
[420359705,1776031853987,-500.0,0.00017352,2]
[420359706,1776031854001,-500.0,0.00017352,2]
[420359709,1776031854038,-500.0,0.00017352,2]
[420359710,1776031854049,-500.0,0.00017352,2]
[420359712,1776031854077,-500.0,0.00017352,2]
[420359715,1776031854088,-500.0,0.00017352,2]
[420359716,1776031854101,-500.0,0.00017352,2]
[420359718,1776031854137,-500.0,0.00017352,2]
[420359721,1776031854153,-500.0,0.00017352,2]
[420359722,1776031854189,-622.00388739,0.00017352,2]
[420359724,1776031854213,-500.0,0.00017352,2]
[420359726,1776031854227,-500.0,0.00017352,2]
[420359728,1776031854237,-150.0,0.00017352,2]
[420359730,1776031854273,-602.65944319,0.00017352,2]
[420359733,1776031854284,-500.0,0.00017352,2]
[420359734,1776031854294,-150.0,0.00017352,2]
[420359737,1776031854312,-504.95063802,0.00017352,2]
[420359738,1776031854322,-150.0,0.00017352,2]
[420359740,1776031854332,-150.0,0.00017352,2]
[420359742,1776031854342,-156.37567058,0.00017352,2]
[420359744,1776031854367,-500.0,0.00017352,2]
[420359746,1776031854378,-500.0,0.00017352,2]
[420359748,1776031854389,-500.0,0.00017352,2]
[420359750,1776031854408,-150.0,0.00017352,2]
[420359752,1776031854425,-350.0,0.00017352,2]
[420359755,1776031854436,-150.0,0.00017352,2]
[420359756,1776031854445,-150.0,0.00017352,2]
[420359759,1776031854461,-150.0,0.00017369,2]
[420359761,1776031854480,-591.0,0.00017406,2]
[420359762,1776031854489,-1118.52,0.00017407,2]
[420359764,1776031854503,-591.0,0.00017428,2]
[420359766,1776031854515,-151.0,0.00017452,2]
[420359768,1776031854531,-151.0,0.00017452,2]
[420359770,1776031854554,-171.886025,0.00017452,2]
[420359773,1776031854567,-171.886025,0.00017452,2]
[420359775,1776031854590,-171.886025,0.00017452,2]
[420359777,1776031854604,-171.886025,0.00017452,2]
[420359779,1776031854615,-900.0,0.00017452,7]
[420359781,1776031854646,-1800.0,0.00017452,7]
[420359782,1776031854657,-591.0,0.00017466,2]
[420359784,1776031854691,-591.0,0.00017538,2]
[420359786,1776031854701,-591.0,0.00017541,2]
[420359788,1776031854736,-1000.0,0.00017597,2]
[420359790,1776031854748,-802.53447794,0.0001764,2]
[420359793,1776031854772,-591.0,0.0001766,2]
[420359795,1776031854787,-1500.0,0.00017668,2]
[420359797,1776031854799,-1108.52370018,0.00017668,2]
[420359799,1776031854810,-1500.0,0.00017668,2]
[420359801,1776031854837,-6976.45084756,0.00017683,2]
[420359803,1776031854847,-935.53542911,0.00017683,2]
[420359805,1776031854866,-151.5533,0.000177,2]
[420359807,1776031854883,-1000.0,0.00017711,2]
[420359809,1776031854894,-591.0,0.00017711,2]
[420359810,1776031854907,-1725.0,0.00017713,2]
[420359812,1776031854922,-320.0,0.00017722,2]
[420359815,1776031854934,-591.0,0.00017728,2]
[420359816,1776031854951,-150.0,0.00017736,2]
[420359819,1776031854966,-187.78006525,0.00017738,2]
[420359820,1776031855017,-150.0,0.0001776,2]
[420359822,1776031855034,-591.0,0.00017769,2]
[420359824,1776031855050,-293.57781544,0.00017794,2]
[420359827,1776031855099,-150.0,0.00017795,2]
[420359829,1776031855132,-2000.0,0.000178,2]
[420359831,1776031855145,-5900.0,0.000178,6]
[420359832,1776031855189,-1000.0,0.00017828,2]
[420359834,1776031855199,-150.0,0.00017854,2]
[420359836,1776031855214,-200.0,0.00017856,2]
[420359838,1776031855228,-2000.0,0.000179,2]
[420359840,1776031855239,-10828.49777268,0.000179,2]
[420359842,1776031855251,-1100.0,0.000179,6]
[420359844,1776031855273,-5989.93998303,0.000179,2]
[420359845,1776031855283,-350.0,0.000179,2]
[420359847,1776031855293,-150.0,0.00017905,2]
[420359849,1776031855312,-150.0,0.00017914,2]
[420359851,1776031855321,-250.0,0.00017929,2]
[420359853,1776031855331,-249.98,0.00017929,2]
[420359856,1776031855346,-694.99,0.00017962,2]
[420359858,1776031855363,-222.89921958,0.0001799,2]
[420359860,1776031855374,-150.0,0.00017994,2]
[420359862,1776031855383,-151.0,0.00017997,2]
[420359863,1776031855395,-500.0,0.00017999,2]
[420359866,1776031855407,-500.0,0.00017999,2]
[420359868,1776031855417,-500.0,0.00017999,2]
[420359870,1776031855427,-500.0,0.00017999,2]
[420359872,1776031855438,-500.0,0.00017999,2]
[420359873,1776031855451,-500.0,0.00017999,2]
[420359876,1776031855462,-500.0,0.00017999,2]
[420359877,1776031855480,-500.0,0.00017999,2]
[420359879,1776031855490,-500.0,0.00017999,2]
[420359882,1776031855499,-500.0,0.00017999,2]
[420359884,1776031855512,-500.0,0.00017999,2]
[420359885,1776031855522,-500.0,0.00017999,2]
[420359887,1776031855532,-500.0,0.00017999,2]
[420359890,1776031855543,-500.0,0.00017999,2]
[420359892,1776031855556,-500.0,0.00017999,2]
[420359893,1776031855567,-595.07,0.00017999,2]
[420359895,1776031855576,-1582133.81221911,0.00018,2]
[420359961,1776031995337,500.0,0.00030137,120]
[420359971,1776032784910,500.0,0.0003013,120]
[420359979,1776033031430,-305.0,0.00010699,2]
[420359983,1776033031453,-150.0,0.00011555,2]
[420359985,1776033031479,-250.0,0.00011769,2]
[420359986,1776033031497,-250.0,0.00013,2]
[420359987,1776033031511,-186.33,0.00014834,2]
[420359988,1776033031529,-300.0,0.00015,2]
[420359989,1776033031539,-151.0,0.00015297,2]
[420359990,1776033031549,-1182.73045395,0.00015839,2]
[420359991,1776033031588,-322.59321388,0.00015839,2]
[420359992,1776033031644,-138.39933217,0.00015839,2]
[420359993,1776033031654,-487.70771066,0.00015839,2]
[420359994,1776033031677,-300.0,0.00015839,2]
[420359995,1776033031691,-462.11065713,0.00015839,2]
[420359996,1776033031740,-98.18163221,0.00015839,2]
[420359997,1776033031765,-160.0,0.0001608,2]
[420359998,1776033031775,-1600.0,0.00016082,2]
[420359999,1776033031785,-700.0,0.00016082,2]
[420360000,1776033031826,-150.0,0.000161,2]
[420360001,1776033031844,-150.0,0.00016101,2]
[420360002,1776033031859,-150.0,0.00016101,2]
[420360003,1776033031870,-150.0,0.00016101,2]
[420360004,1776033031882,-1073.79836779,0.0001636,2]
[420360005,1776033031896,-126.20163221,0.0001636,2]
[420360006,1776033031910,-3510.50816527,0.00016361,2]
[420360007,1776033031929,-305.33499879,0.00016361,2]
[420360008,1776033031944,-5664.16683594,0.00016361,2]
[420360009,1776033031968,-150.99,0.00016471,2]
[420360010,1776033031981,-999.99,0.00016471,2]
[420360011,1776033031995,-6065.83180133,0.00016471,2]
[420360015,1776033032067,-2268.60819867,0.00016471,2]
[420360017,1776033032078,-450.0,0.00016479,2]
[420360018,1776033032088,-578.20924308,0.0001648,2]
[420360019,1776033032102,-500.0,0.0001648,2]
[420360020,1776033032117,-318.22760203,0.0001648,2]
[420360021,1776033032130,-151.0,0.0001648,2]
[420360022,1776033032149,-170.0,0.0001648,2]
[420360023,1776033032159,-2000.0,0.00016564,2]
[420360024,1776033032169,-151.0,0.0001679,2]
[420360025,1776033032183,-1182.71431994,0.0001679,2]
[420360026,1776033032197,-151.0,0.0001679,2]
[420360027,1776033032207,-150.2032,0.000173,2]
[420360028,1776033032218,-1573.169,0.00017452,2]
[420360029,1776033032235,-700.0,0.00017452,7]
[420360030,1776033032245,-1600.0,0.00017452,7]
[420360031,1776033032257,-1500.0,0.000175,6]
[420360032,1776033032282,-150.0,0.00017525,2]
[420360033,1776033032292,-150.0,0.00017525,2]
[420360034,1776033032312,-150.79833558,0.00017525,2]
[420360035,1776033032338,-3000.0,0.000176,6]
[420360036,1776033032350,-535.02298529,0.0001764,2]
[420360037,1776033032377,-150.0,0.00017699,2]
[420360038,1776033032386,-253.51550935,0.000177,2]
[420360039,1776033032401,-4600.0,0.000177,6]
[420360040,1776033032433,-2913.2025,0.000177,2]
[420360041,1776033032445,-49727.7366,0.000177,2]
[420360042,1776033032465,-2500.0,0.000177,2]
[420360043,1776033032476,-700.0,0.00017709,2]
[420360044,1776033032489,-565.07011097,0.00017735,2]
[420360045,1776033032518,-316.0,0.00017756,2]
[420360046,1776033032527,-474.90735119,0.00017773,2]
[420360047,1776033032537,-242.46089406,0.00017773,2]
[420360048,1776033032569,-500.0,0.00017773,2]
[420360049,1776033032585,-500.0,0.00017773,2]
[420360050,1776033032596,-500.0,0.00017773,2]
[420360051,1776033032609,-316.0,0.00017784,2]
[420360052,1776033032625,-5000.0,0.00017795,2]
[420360053,1776033032646,-190.98253621,0.00017799,2]
[420360054,1776033032657,-500.0,0.00017799,2]
[420360055,1776033032682,-325.0578063,0.00017799,2]
[420360056,1776033032692,-500.0,0.00017799,2]
[420360057,1776033032703,-500.0,0.00017799,2]
[420360058,1776033032729,-502.08550362,0.00017799,2]
[420360059,1776033032740,-500.0,0.00017799,2]
[420360060,1776033032770,-500.0,0.00017799,2]
[420360061,1776033032780,-243.33276513,0.00017799,2]
[420360062,1776033032810,-500.0,0.00017799,2]
[420360063,1776033032821,-500.0,0.00017799,2]
[420360064,1776033032836,-500.0,0.00017799,2]
[420360065,1776033032864,-500.0,0.00017799,2]
[420360066,1776033032900,-500.0,0.00017799,2]
[420360067,1776033032939,-500.0,0.00017799,2]
[420360068,1776033032959,-500.0,0.00017799,2]
[420360069,1776033032970,-500.0,0.00017799,2]
[420360070,1776033032989,-500.0,0.00017799,2]
[420360071,1776033033004,-500.0,0.00017799,2]
[420360072,1776033033036,-644.36,0.00017799,2]
[420360073,1776033033046,-150.0,0.00017799,2]
[420360074,1776033033057,-392102.33324091,0.000178,2]
[420360075,1776033033080,-500.91157275,0.000178,2]
[420360076,1776033033189,-235749.87005083,0.000178,2]
[420360080,1776033037786,-356.68199019,0.0001764,2]
[420360081,1776033037797,-5000.0,0.000177,2]
[420360082,1776033037812,-934.8973254,0.00017788,2]
[420360083,1776033037823,-150.85611875,0.00017795,2]
[420360084,1776033037843,-1073.19271858,0.00017795,2]
[420360085,1776033037853,-80248.02548856,0.000178,2]
[420360087,1776033038410,-2603.83148825,0.000178,2]
[420360088,1776033038423,-1829.48085355,0.000178,2]
[420360089,1776033038453,-943.95867498,0.000178,2]
[420360090,1776033038479,-903.93718342,0.000178,2]
[420360091,1776033038499,-10539.90064675,0.000178,2]
[420360092,1776033038508,-284.88753467,0.000178,2]
[420360093,1776033038537,-6100.0,0.000178,6]
[420360094,1776033038546,-316.0,0.0001784,2]
[420360095,1776033038560,-316.0,0.00017844,2]
[420360096,1776033038580,-200.0,0.00017856,2]
[420360097,1776033038590,-166.2057,0.0001787,2]
[420360098,1776033038602,-501.12672973,0.00017873,2]
[420360099,1776033038627,-500.0,0.00017873,2]
[420360100,1776033038637,-582.33512146,0.00017873,2]
[420360101,1776033038652,-500.0,0.00017873,2]
[420360102,1776033038672,-500.0,0.00017873,2]
[420360103,1776033038695,-500.0,0.00017873,2]
[420360104,1776033038712,-500.0,0.00017873,2]
[420360105,1776033038725,-222.8992196,0.00017885,2]
[420360106,1776033038749,-316.0,0.00017895,2]
[420360107,1776033038759,-2812.0,0.00017895,5]
[420360108,1776033038775,-2255.0,0.00017895,5]
[420360109,1776033038793,-12875.24786079,0.00017895,2]
[420360110,1776033038807,-1684.25723138,0.00017895,2]
[420360111,1776033038832,-2480.40403493,0.00017895,2]
[420360112,1776033038845,-504.52579521,0.00017895,2]
[420360113,1776033038871,-1798.34389342,0.00017895,2]
[420360114,1776033038887,-3205.12337224,0.00017895,2]
[420360115,1776033038906,-308.5174995,0.00017895,2]
[420360116,1776033038925,-1185.64292,0.00017895,2]
[420360117,1776033038941,-30311.55516234,0.00017895,2]
[420360120,1776033040571,-74157.92943655,0.00017895,2]
[420360121,1776033040708,-27326.58278638,0.00017895,2]
[420360122,1776033040721,-147590.36854234,0.00017895,2]
[420360123,1776033040738,-892.18335078,0.00017895,2]
[420360124,1776033040750,-519.56113632,0.00017895,2]
[420360125,1776033040771,-3600.0,0.00017895,2]
[420360127,1776033040783,-5186.96950047,0.00017895,2]
[420360133,1776033040864,-237.78799346,0.0001764,2]
[420360134,1776033040873,-699.63319905,0.00017895,2]
[420360135,1776033040888,-430.4257349,0.00017895,2]
[420360136,1776033040913,-6633.13592568,0.00017895,2]
[420360137,1776033040935,-408.63278698,0.00017895,2]
[420360138,1776033040955,-350.33533698,0.00017895,2]
[420360139,1776033040970,-1902.07,0.00017895,2]
[420360154,1776033043167,-111787.84047517,0.00017895,2]
[420360155,1776033043310,-11723.64423464,0.00017895,2]
[420360156,1776033043353,-94321.69425441,0.00017895,2]
[420360157,1776033043375,-972.59568653,0.00017895,2]
[420360159,1776033043784,-396.31332244,0.00017895,2]
[420360161,1776033043801,-145946.92334961,0.00017895,2]
[420360163,1776033043813,-3783.16635805,0.00017895,2]
[420360199,1776033045563,-5452.50000408,0.00017895,2]
[420360200,1776033045576,-2545.24253814,0.00017895,2]
[420360201,1776033045769,-999.0,0.00017895,2]
[420360202,1776033045785,-382.94399198,0.00017895,2]